Workbook

Sheet Funding
B1: Joseph McAvinnue Elementary School
B2: School Year 20-21 Budget | G2: Comparison to previous year budget
B3: Category | C3: Students | D3: Weight | E3: Amount | G3: Year | H3: 19-20 | I3: 20-21 | J3: Change
B4: Weights | G4: Enrollment | H4: 472 | I4: 471.8 | J4: =I4-H4 -> -0.2
B5: All students | C5: 471.8 | D5: 4500 | E5: =C5*D5 -> 2123100 | G5: FSF Budget | H5: 4820685 | I5: 4820685 | J5: =I5-H5 -> 0
B6: Economically disadvantaged | C6: 316 | D6: 1575 | E6: 497700 | G6: Other Funding | H6: =SUM(E27:E28) -> 293767.15 | I6: =SUM(E27:E28) -> 293767.15 | J6: =I6-H6 -> 0
B7: Low incoming performance | C7: 0 | D7: 900 | E7: 0 | G7: Total Budget | H7: =SUM(H5:H6) -> 5114452.15 | I7: =SUM(I5:I6) -> 5114452.15 | J7: =I7-H7 -> 0
B8: Grades PreK-3 | C8: 379.8 | D8: 1575 | E8: 598185 | G8: $ per pupil | H8: =H7/H4 -> 10835.70371 | I8: =I7/I4 -> 10840.29705 | J8: =I8-H8 -> 4.593346209
B9: Grade 9 | C9: 0 | D9: 3750 | E9: 0
B10: ELL below Level 3 | C10: 70 | D10: 2750 | E10: 192500
B11: ELL Level 3 and above | C11: 83 | D11: 1400 | E11: 116200
B12: SWD substantially separate | C12: 24 | D12: 22500 | E12: 540000
B13: SWD inclusion/language | C13: 38 | D13: 6250 | E13: 237500
B15: Baseline
B16: ELL Baseline | E16: 0
B17: SWD Baseline | E17: 0
B18: General Ed Baseline | E18: 0
B20: Other Policies
B21: Transition amount | E21: 515500
B22: Budget Exceptions | E22: 0 | F22: Exception Reason:
B24: FSF Total
E25: =SUM(E5:E13,E16:E18,E21:E22) -> 4820685
B26: Funding from outside FSF
B27: Title I | E27: =Budget!C152 -> 168725
B28: Other positions provided outside of FSF | E28: =SUM(Budget!G87,Budget!G93,Budget!G81, Budget!G115, Budget!G139:G142) -> 125042.15
B30: Total funding
E31: =SUM(E25,E27,E28) -> 5114452.15
B34: Summary
B35: The McAvinnue's funding decreased due to weights but was supplemented by transition policy.

Sheet Priorities
A1: Connect Quality Improvement Plan priorities to Budgeting Implications
A2: Directions: Take a moment to reflect on your school's priorities as stated in your Quality Improvement Plan, and how they will inform how you choose to spend your SBB allocation. This tab gives you space to identify your most urgent student needs, the strategies to address those needs, and the implications that this all has for your budget. Replace the examples in the yellow boxes with your own priorities, strategies, and budgeting implications.
B4: Urgent Student Needs | D4: Strategies to Address Needs | E4: Budget / Staffing Implications
B5: These are the student needs that principals have identified as the most urgent needs at their schools. Urgent needs should be as specific as possible (see examples provided). Depending on your district's theory of action, this information can be identified by the principal OR it could be provided by the district. | D5: After identifying the most urgent needs, principals should identify the strategies they will adopt to address those needs. As with the urgent needs, principals could decide this on their own or be given a menu of options by the district. | E5: This is where the principals will take theory to reality. Different strategies require different investments. Hence, in this section, principals are expected to list the cost of their strategies. What position will they need to hire? What materials will they need to purchase? Any investments required for the strategy to be successful should be listed here.
B6: Key Question: What are the urgent student needs you would like to focus on next year? | D6: Key Question: What strategies and changes will you implement next year to address these needs? | E6: Key Questions: What are the resource implications for these strategies? Do you need to hire additional people? How much will this all cost you?
A7: 1 | B7: Additional support for our Special Education student population to ensure individual needs are being met during specialized instruction and allow for increased co-teaching opportunities within each grade level (PreK – Grade 4) | D7: We will have a Special Education Teacher at each grade level that will allow for increased opportunity to implement the co-teaching instructional model and increased fidelity of service delivery. | E7: Investigating the possibility of hiring an additional full-time Special Education Teacher.
A8: 2 | B8: Additional support for our English Language Learners (ELL) to ensure continued deliberate support is provided that promotes measurable development, growth, and overall progress of language acquisition (Functional & Academic). | D8: We will increase the .6 ELD teacher to a full-time teaching position to support those ELL coded students that have an English Language Proficiency Level of 2.5 or higher. | E8: Investigating the possibility of hiring an additional full-time ELD Education Teacher (.4 increase).
A9: 3 | B9: Continue our work to build a passion for reading with our students by supporting them to find in a manner that allows multiple opportunities to experience success in reading. | D9: Implement extensive professional development focusing on Reader's Conferencing. | E9: Investing in PD focusing on Reader's Conferencing for all grade level throughout the 2020-2021 academic school year. Investigate hiring an additional tutor to support this initiative.
A10: 4 | B10: Building on our S.T.E.A.M. focus through the continuation of McAvinnue’s “FULL S.T.E.A.M. Ahead” Day with an increased budgetary focus to supplement materials that can be used to support the engaging project-based activities completed on this day. | D10: Continue the priority focus to integrate S.T.E.A.M. consistently with all grade levels during Early Release Days and beyond. | E10: Increase classroom-based funding to include substantial allocation to purchase materials to be used for S.T.E.A.M. related activities and project-based opportunities.
A11: 5 | B11: Continue to explore new ways to encourage school attendance for all students and increase opportunities for families to be more involved in their child’s school experience. | D11: Continue to support the ongoing committee work that focuses on family and student engagement. This working group plans monthly events that allow families to access the school in unique ways outside of the typical academic day. | E11: Increase funding for events that prompt family and student engagement outside of the typcial school day.

Sheet Budget
A1: Joseph McAvinnue Elementary School | B1: Last year's staff | C1: Required minimum | D1: Budgeted Staff | E1: Check: Sufficient Staff? | F1: Average Salary + Benefits | G1: Amount | H1: Notes | I1: Title I Check
A2: School Year 20-21 Budget | D2: Budget in blank cells | G2: =G3-G157 -> 0 | H2: Amount remaining to budget | I2: =B152-G152 -> 0 | J2: Amount remaining in Title I budget
A3: Positions in navy blue have been HS-only in the past | D3: Gray cells are budgeted for you | G3: =Funding!E31 -> 5114452.15 | H3: Total Allocation, All Sources | I3: =B152 -> 168725 | J3: Title I budget
A4: 2100 Principal's Office:
A5: Principal/Coordinator | B5: 1 | C5: 1 | D5: 1 | E5: =IF(D5<C5, "Please budget additional staff", "Yes") -> Yes | F5: 140268 | G5: 140268
A6: Headmaster | B6: 0 | C6: 0 | E6: =IF(D6<C6, "Please budget additional staff", "Yes") -> Yes | F6: 173679.8376
A7: Assistant Principal | B7: 1 | D7: 1 | E7: =IF(D7<C7, "Please budget additional staff", "Yes") -> Yes | F7: 128579 | G7: 128579
A8: House Deans | B8: 0 | E8: =IF(D8<C8, "Please budget additional staff", "Yes") -> Yes | F8: 141596.3847
A9: Administrative Assistant | B9: 1 | C9: 1 | D9: 1 | E9: =IF(D9<C9, "Please budget additional staff", "Yes") -> Yes | F9: 56107.2 | G9: 56107
B10: 3 | C10: 2 | G10: =SUM(G5:G9) -> 324954
A12: Coaches:
A13: Math Resource Teacher | B13: 1 | D13: 1 | E13: =IF(D13<C13, "Please budget additional staff", "Yes") -> Yes | F13: 93512 | G13: 93512
A14: Literacy Specialist | B14: 1 | C14: 1 | D14: 1 | E14: =IF(D14<C14, "Please budget additional staff", "Yes") -> Yes | F14: 97985 | G14: 97985
A15: Instructional Specialist | B15: 0 | C15: 0 | E15: =IF(D15<C15, "Please budget additional staff", "Yes") -> Yes | F15: 97985 | G15: =D15*F15 -> 0
A16: Additional professional development coaches | E16: =IF(D16<C16, "Please budget additional staff", "Yes") -> Yes | F16: 97985 | G16: =D16*F16 -> 0
B17: 2 | C17: 1 | G17: =SUM(G13:G16) -> 191497
A19: General Education Teachers:
A20: Classroom Teachers
A21: PreSchool Teachers | B21: 1 | C21: 1 | D21: 1 | E21: =IF(D21<C21, "Please budget additional staff", "Yes") -> Yes | F21: 93512 | G21: 93512
A22: Kindergarten Teachers | B22: 4 | C22: 3 | D22: 4 | E22: Yes | F22: 93512 | G22: 374048
A24: 1st Grade Teachers | B24: 4 | C24: see below | D24: 4 | E24: see below | F24: 93512 | G24: 374048
A25: 2nd Grade Teachers | B25: 4 | C25: see below | D25: 4 | E25: see below | F25: 93512 | G25: 374048
A26: 3rd Grade Teachers | B26: 4 | C26: see below | D26: 4 | E26: see below | F26: 93512 | G26: 374048
A27: 4th Grade Teachers | B27: 4 | C27: see below | D27: 4 | E27: see below | F27: 93512 | G27: 374048
A28: 5th Grade Teachers | B28: 0 | C28: see below | E28: see below | F28: 93512 | G28: =D28*F28 -> 0
A29: 6th Grade Teachers | B29: 0 | C29: see below | E29: see below | F29: 93512 | G29: 0
A30: 7th Grade Teachers | B30: 0 | C30: see below | E30: see below | F30: 93512 | G30: 0
A31: 8th Grade Teachers | B31: 0 | C31: see below | E31: see below | F31: 93512 | G31: 0
A32: Loopers | B32: 0 | C32: see below | E32: see below | F32: 93512 | G32: 0
A33: All Grades 1-8 Teachers | B33: 16 | C33: 14 | D33: =SUM(D24:D32) -> 16 | E33: Yes
A36: Allied Arts
A37: Art | B37: 1 | D37: 1 | E37: =IF(D37<C37, "Please budget additional staff", "Yes") -> Yes | F37: 93512 | G37: 93512
A38: Music | B38: 1 | D38: 1 | E38: Yes | F38: 93512 | G38: 93512
A39: Physical Education | B39: 1 | C39: 1 | D39: 1 | E39: Yes | F39: 93512 | G39: 93512
A40: Technology Ed | B40: 0 | E40: Yes | F40: 93512 | G40: =D40*F40 -> 0
A41: Drama | B41: 0 | E41: Yes | F41: 93512 | G41: 0
A42: ITS | B42: 0 | E42: Yes | F42: 93512 | G42: 0
A43: Content Literacy | B43: 1 | D43: 1 | E43: Yes | F43: 93512 | G43: 93512
A44: Health | B44: 0 | E44: Yes | F44: 93512 | G44: 0
A45: Dance | B45: 0 | E45: Yes | F45: 93512 | G45: 0
A46: Library/Media Specialist | B46: 0 | E46: Yes | F46: 108441.7753 | G46: 0
A47: Other | B47: 0 | E47: Yes | F47: 93512 | G47: =D47*F47 -> 0
A49: Subject Teachers (High school only)
A50: Math Teachers | B50: 0 | C50: see below | E50: see below | F50: 93512 | G50: =D50*F50 -> 0
A51: Science Teachers | B51: 0 | C51: see below | E51: see below | F51: 93512 | G51: 0
A52: Social Studies Teachers | B52: 0 | C52: see below | E52: see below | F52: 93512 | G52: 0
A53: English | B53: 0 | C53: see below | E53: see below | F53: 93512 | G53: 0
A54: Foreign Language | B54: 0 | C54: see below | E54: see below | F54: 93512 | G54: 0
A55: All HS Subject Teachers | B55: 0 | C55: 0 | E55: =IF(D55<C55, "Please budget additional staff", "Yes") -> Yes
A57: In House Suspension | B57: 0 | E57: Yes | F57: 93512 | G57: 0
A58: Consumer Science | B58: 0 | E58: Yes | F58: 93512 | G58: 0
A59: Business | B59: 0 | E59: Yes | F59: 93512 | G59: 0
A60: Video Production | B60: 0 | E60: Yes | F60: 93512 | G60: 0
A61: ROTC | B61: 0 | E61: Yes | F61: 93512 | G61: 0
A63: All General Education Teachers | B63: 25 | D63: =SUM(D21:D22,D24:D32, D37:D47, D50:D54,D57:D61) -> 25 | G63: =SUM(G21:G61) -> 2337800
A66: Paraprofessionals:
A67: Mainstream Paras
A68: Preschool Para | B68: 1 | C68: 1 | D68: 1 | E68: =IF(D68<C68, "Please budget additional staff", "Yes") -> Yes | F68: 37989.25 | G68: 37989
A69: Kindergarten Para | B69: 4 | C69: 3 | D69: 4 | E69: Yes | F69: 37989.25 | G69: 151956
A70: Mainstream Paras | B70: 4 | D70: 4 | E70: Yes | F70: 37989.25 | G70: 151956
A71: All General Education Paras | B71: 9 | C71: 4 | D71: =SUM(D68:D70) -> 9 | G71: =SUM(G68:G70) -> 341901
A73: Special Programs
A74: Special Education | B74: If you plan to change special education staffing, contact Mike Lovato by 3/16/2020
A75: Adjustment Teachers | B75: 0 | E75: =IF(D75<>B75, "Contact Mike Lovato", "No change") -> No change | F75: 93512 | G75: =D75*F75 -> 0
A76: LEAP Teachers | B76: 0 | E76: No change | F76: 93512 | G76: 0
A77: CSA Teachers | B77: 3 | D77: 3 | E77: No change | F77: 93512 | G77: 280536
A78: Other Special Ed Teachers | B78: 4 | D78: 5 | E78: Contact Mike Lovato | F78: 93512 | G78: 467560
E79: No change
A80: Special Education Classroom Paras | B80: 9 | D80: 9 | E80: No change | F80: 37989.25 | G80: 341901
A81: 504 /1to1 | B81: 0 | C81: Provided outside of SSB | D81: =B81 -> 0 | E81: Provided outside of SSB | F81: 37989.25 | G81: =D81*F81 -> 0
A84: English Language Learners
A85: ELL Teachers | B85: 2.6 | C85: 2.6 | D85: 3 | E85: =IF(D85<C85, "Please budget additional staff", "Yes") -> Yes | F85: 93512 | G85: 280536
A86: ELL Para | B86: 2 | D86: 2 | E86: =IF(D86<C86, "Please budget additional staff", "Yes") -> Yes | F86: 37989.25 | G86: 75978
A87: ELL Tutor (Title III) | B87: 1 | C87: Provided outside of SSB | D87: =B87 -> 1 | E87: Provided outside of SSB | F87: 15750 | G87: =D87*F87 -> 15750
A89: All Special Programs Teachers & Paras | B89: 22 | C89: 3 | D89: =SUM(D85:D87,D75:D81) -> 23 | G89: =SUM(G85:G87,G75:G81) -> 1462261
A91: Student Support:
A92: Guidance Counselor | E92: =IF(D92<C92, "Please budget additional staff", "Yes") -> Yes | F92: 107538.8 | G92: =D92*F92 -> 0
A93: Social Worker | B93: 1 | C93: Provided outside of SSB | D93: =B93 -> 1 | E93: Provided outside of SSB | F93: 109292.15 | G93: 109292.15
A94: Additional social workers | B94: 0 | E94: Yes | F94: 109292.15 | G94: 0
A95: SEL Tutors: 18 hrs/week | B95: 0 | E95: Yes | F95: 18900 | G95: 0
A96: Tutors: 18 hrs/week | B96: 0 | E96: Yes | F96: 18900 | G96: 0
A97: Tutors: 15 hrs/week (Title I) | B97: 4 | D97: 5 | E97: Yes | F97: 14850 | G97: 74250
A98: Parent Liaisons: Stipended (Title I) | B98: 0 | E98: Yes | F98: 3000 | G98: 0
A99: Parent Liaisons: 18 hrs/week (Title I) | B99: 1 | D99: 1 | E99: Yes | F99: 11340 | G99: 11340
A100: Parent Liaison, full time | B100: 0 | E100: Yes | F100: =36865*1.1689 -> 43091.4985 | G100: 0
B101: 7 | C101: 0 | D101: =SUM(D92:D100) -> 7 | G101: =SUM(G92:G100) -> 194882.15
A103: Facilities
A104: Security Guards | B104: 0 | C104: 0 | E104: =IF(D104<C104, "Please budget additional staff", "Yes") -> Yes | F104: 52524.62553 | G104: =D104*F104 -> 0
A105: Custodians | B105: 3 | C105: 3 | D105: 3 | E105: =IF(D105<C105, "Please budget additional staff", "Yes") -> Yes | F105: 56107.2 | G105: 168321
B106: 3 | C106: 0 | D106: =SUM(D104:D105) -> 3 | G106: =SUM(G104:G105) -> 168321
A108: High School-Specific Positions
A109: Coordinator of Student Support Services | B109: 0 | E109: =IF(D109<C109, "Please budget additional staff", "Yes") -> Yes | F109: 146909.6898 | G109: =D109*F109 -> 0
A110: Discipline & Operations Specialist | B110: 0 | E110: Yes | F110: 126736.8136 | G110: =D110*F110 -> 0
A111: Academic Chairs | B111: 0 | E111: Yes | F111: 135108.956 | G111: 0
A112: Director of the Freshman Academy | B112: 0 | E112: Yes | F112: 137154.9388 | G112: 0
A113: Student Services Specialist - Freshman Academy | B113: 0 | E113: Yes | F113: 117795.5936 | G113: 0
A114: Bursar/Financial Specialist | B114: 0 | E114: Yes | F114: 58072.20272 | G114: 0
A115: Clerk Schedulers | B115: 0 | E115: =IF(D115<C115, "Please budget additional staff", "Yes") -> Yes | F115: 53207.8768 | G115: 0
A116: Administrator of Athletics | B116: 0 | E116: Yes | F116: 141670.7969 | G116: 0
A117: Student Activity Advisor | B117: 0 | E117: Yes | F117: 96122.31735 | G117: 0
B118: 0 | C118: 0 | D118: =SUM(D109:D117) -> 0 | G118: =SUM(G109:G117) -> 0
A120: Other Positions
A121: Other (Please describe) | B121: 0 | E121: =IF(D121<C121, "Please budget additional staff", "Yes") -> Yes | F121: See James Hall and Linus Guillory to estimate salary + benefits | G121: =IFERROR(D121*F121, 0) -> 0
A122: Other (Please describe) | B122: 0 | E122: Yes | F122: See James Hall and Linus Guillory to estimate salary + benefits | G122: =IFERROR(D122*F122, 0) -> 0
D123: =SUM(D121:D122) -> 0 | G123: =SUM(G121:G122) -> 0
A125: Total Staffing
B126: 71 | G126: =SUM(G10,G17,G63,G71,G89,G101,G106,G118, G123) -> 5021616.15
A128: Non-Personnel
A129: Instructional Supplies | B129: 37760 | E129: =IF(D129<C129, "Please budget additional funds", "Yes") -> Yes | G129: 92836
A130: STEM Lead Stipends | B130: 0 | E130: =IF(D130<C130, "Please budget additional funds", "Yes") -> Yes
A131: Enrichment | B131: 0 | E131: Yes | G131: =D131 -> 0
A132: Athletics: Coaches | B132: 0 | E132: Yes | G132: 0
A133: Athletics: Contracted Services | B133: 0 | E133: Yes | G133: 0
A134: Athletics: Transportation | B134: 0 | E134: Yes | G134: 0
A135: Athletics: Supplies & Uniforms | B135: 0 | E135: Yes | G135: 0
A136: Athletics: Rental Fees | B136: 0 | E136: Yes | G136: 0
A137: Student Activity Stipends | B137: 0 | E137: Yes | G137: 0
A138: Student Activity Supplies | B138: 0 | E138: Yes
A139: Dual Enrollment | B139: 0 | C139: Provided outside of SSB | D139: =B139 -> 0 | E139: Provided outside of SSB | G139: 0
A140: SCORE Peer Mediation | B140: 0 | C140: Provided outside of SSB | D140: =B140 -> 0 | E140: Provided outside of SSB | G140: 0
A141: Band camp | B141: 0 | C141: Provided outside of SSB | D141: =B141 -> 0 | E141: Provided outside of SSB | G141: 0
A142: Choral supplies | B142: 0 | C142: Provided outside of SSB | D142: =B142 -> 0 | E142: Provided outside of SSB | G142: 0
A143: Jr. Air Force ROTC Supplies & Equip. | B143: 0 | E143: Yes | G143: 0
A144: Other (describe in column H) | E144: Yes | G144: 0
B145: 37760 | D145: =SUM(D129:D144) -> 0 | G145: =SUM(G129:G144) -> 92836
A147: Title I Review
A148: Coaches | B148: 1 | C148: 1 | D148: 1 | E148: See below | F148: 97985 | G148: 97985
A149: Parent Liaisons: Stipended | B149: 0 | D149: =D98 -> 0 | E149: See below | F149: 3000 | G149: =D149*F149 -> 0
A150: Parent Liaisons: 18 hrs/week | B150: 1 | C150: 1 | D150: =D99 -> 1 | E150: See below | F150: 11340 | G150: 11340
A151: Tutors: 15 hrs/wk | B151: 4 | C151: 4 | D151: 4 | E151: See below | F151: 14850 | G151: 59400
A152: Total Title I Allocation | B152: 168725 | C152: 168725 | D152: =SUM(D148:D151) -> 6 | E152: =IF(G152<C152, "You have used "&ROUND(G152/C152*100, 0)&"% of your Title I budget", IF(G152>C152, "Exceeds Title I budget", "Yes")) -> Yes | G152: =SUM(G148:G151) -> 168725
A156: Total Budget
G157: =SUM(G126,G145) -> 5114452.15
